lending/lending_fUSD_20250719
["ID","MTS","AMOUNT","RATE_DAILY","PERIOD"]
[373174994,1752889864941,-15887.57,0.00019726,2]
[373174995,1752889864951,-480.0,0.00019726,2]
[373174996,1752889864960,-480.0,0.00019726,2]
[373174997,1752889864970,-480.0,0.00019726,2]
[373174998,1752889864980,-480.0,0.00019726,2]
[373174999,1752889864989,-585.59711624,0.00019726,2]
[373175000,1752889864999,-505.31,0.00019726,2]
[373175001,1752889865009,-3440.0,0.00019726,2]
[373175002,1752889865018,-2091.14,0.00019726,2]
[373175003,1752889865027,-480.0,0.00019726,2]
[373175004,1752889865037,-661.19,0.00019726,2]
[373175005,1752889865046,-1260.7,0.00019726,2]
[373175006,1752889865055,-811.22,0.00019726,2]
[373175007,1752889865064,-480.0,0.00019726,2]
[373175008,1752889865074,-480.0,0.00019726,2]
[373175009,1752889865083,-2023.49,0.00019726,2]
[373175010,1752889865092,-480.0,0.00019726,2]
[373175011,1752889865102,-480.0,0.00019726,2]
[373175012,1752889865111,-958.94,0.00019726,2]
[373175013,1752889865121,-480.0,0.00019726,2]
[373175014,1752889865131,-480.0,0.00019726,2]
[373175015,1752889865140,-689.88,0.00019726,2]
[373175016,1752889865150,-480.0,0.00019726,2]
[373175017,1752889865159,-545.23,0.00019726,2]
[373175018,1752889865168,-548.66,0.00019726,2]
[373175019,1752889865180,-748.38,0.00019726,2]
[373175020,1752889865189,-664.19,0.00019726,2]
[373175021,1752889865198,-1476.64,0.00019726,2]
[373175022,1752889865207,-641.37,0.00019726,2]
[373175023,1752889865217,-480.0,0.00019726,2]
[373175024,1752889865226,-480.0,0.00019726,2]
[373175025,1752889865235,-673.74,0.00019726,2]
[373175026,1752889865245,-712.57,0.00019726,2]
[373175027,1752889865254,-1562.46,0.00019726,2]
[373175028,1752889865264,-2525.28,0.00019726,2]
[373175029,1752889865273,-846.8,0.00019726,2]
[373175030,1752889865282,-1832.83,0.00019726,2]
[373175031,1752889865291,-480.0,0.00019726,2]
[373175032,1752889865301,-853.3,0.00019726,2]
[373175033,1752889865310,-480.0,0.00019726,2]
[373175034,1752889865320,-1334.13,0.00019726,2]
[373175035,1752889865329,-480.0,0.00019726,2]
[373175036,1752889865339,-480.0,0.00019726,2]
[373175037,1752889865348,-480.0,0.00019726,2]
[373175038,1752889865357,-1028.02,0.00019726,2]
[373175039,1752889865367,-480.0,0.00019726,2]
[373175040,1752889865376,-506.57,0.00019726,2]
[373175041,1752889865385,-480.0,0.00019726,2]
[373175042,1752889865395,-1671.76,0.00019726,2]
[373175043,1752889865404,-480.0,0.00019726,2]
[373175044,1752889865413,-866.58,0.00019726,2]
[373175045,1752889865423,-480.0,0.00019726,2]
[373175046,1752889865433,-480.0,0.00019726,2]
[373175047,1752889865443,-975.79,0.00019726,2]
[373175048,1752889865453,-480.0,0.00019726,2]
[373175049,1752889865462,-1338.51,0.00019726,2]
[373175050,1752889865471,-480.0,0.00019726,2]
[373175051,1752889865480,-480.0,0.00019726,2]
[373175052,1752889865490,-1141.89,0.00019726,2]
[373175053,1752889865499,-749.04,0.00019726,2]
[373175054,1752889865509,-480.0,0.00019726,2]
[373175055,1752889865518,-5689.31382887,0.00019726,2]
[373175056,1752889865877,-568.27617113,0.00019726,2]
[373175057,1752889865887,-1190.47,0.00019726,2]
[373175058,1752889865897,-1342.71,0.00019726,2]
[373175059,1752889865907,-480.0,0.00019726,2]
[373175060,1752889865916,-480.0,0.00019726,2]
[373175061,1752889865927,-1162.36,0.00019726,2]
[373175062,1752889865936,-570.25,0.00019726,2]
[373175063,1752889865946,-480.0,0.00019726,2]
[373175064,1752889865955,-480.0,0.00019726,2]
[373175065,1752889865964,-753.71,0.00019726,2]
[373175066,1752889865974,-911.83,0.00019726,2]
[373175067,1752889865983,-572.78,0.00019726,2]
[373175068,1752889865993,-480.0,0.00019726,2]
[373175069,1752889866002,-1250.81,0.00019726,2]
[373175070,1752889866011,-480.0,0.00019726,2]
[373175071,1752889866021,-480.0,0.00019726,2]
[373175072,1752889866030,-480.0,0.00019726,2]
[373175073,1752889866040,-835.97,0.00019726,2]
[373175074,1752889866049,-480.0,0.00019726,2]
[373175075,1752889866059,-1701.12,0.00019726,2]
[373175076,1752889866068,-538.36,0.00019726,2]
[373175077,1752889866077,-480.0,0.00019726,2]
[373175078,1752889866087,-480.0,0.00019726,2]
[373175079,1752889866096,-1610.13,0.00019726,2]
[373175080,1752889866105,-480.0,0.00019726,2]
[373175081,1752889866115,-480.0,0.00019726,2]
[373175082,1752889866124,-480.0,0.00019726,2]
[373175083,1752889866137,-3007.93,0.00019726,2]
[373175084,1752889866149,-1380.22,0.00019726,2]
[373175085,1752889866158,-697.23,0.00019726,2]
[373175086,1752889866167,-480.0,0.00019726,2]
[373175087,1752889866178,-480.0,0.00019726,2]
[373175088,1752889866188,-739.04,0.00019726,2]
[373175089,1752889866197,-480.0,0.00019726,2]
[373175090,1752889866207,-511.36,0.00019726,2]
[373175091,1752889866216,-480.0,0.00019726,2]
[373175092,1752889866226,-855.54,0.00019726,2]
[373175093,1752889866235,-887.37,0.00019726,2]
[373175094,1752889866244,-620.53,0.00019726,2]
[373175095,1752889866254,-6647.08,0.00019726,2]
[373175096,1752889866264,-480.0,0.00019726,2]
[373175097,1752889866273,-1924.32,0.00019726,2]
[373175098,1752889866283,-3781.44,0.00019726,2]
[373175099,1752889866292,-513.9,0.00019726,2]
[373175100,1752889866302,-776.21,0.00019726,2]
[373175101,1752889866311,-480.0,0.00019726,2]
[373175102,1752889866321,-882.17,0.00019726,2]
[373175103,1752889866330,-1168.82,0.00019726,2]
[373175104,1752889866339,-480.0,0.00019726,2]
[373175105,1752889866349,-480.0,0.00019726,2]
[373175106,1752889866358,-1000.0,0.00019726,2]
[373175107,1752889866368,-724.7,0.00019726,2]
[373175108,1752889866378,-480.0,0.00019726,2]
[373175109,1752889866387,-480.0,0.00019726,2]
[373175110,1752889866396,-480.0,0.00019726,2]
[373175111,1752889866406,-480.0,0.00019726,2]
[373175112,1752889866416,-1550.69,0.00019726,2]
[373175113,1752889866427,-583.62,0.00019726,2]
[373175114,1752889866436,-480.0,0.00019726,2]
[373175115,1752889866445,-666.6,0.00019726,2]
[373175116,1752889866455,-480.0,0.00019726,2]
[373175117,1752889866464,-1297.57,0.00019726,2]
[373175118,1752889866474,-480.0,0.00019726,2]
[373175119,1752889866483,-21.84971003,0.00019726,2]
[373175120,1752889866504,-480.0,0.00019178,2]
[373175121,1752889866513,-458.15028997,0.00019726,2]
[373175122,1752889866523,-480.0,0.00019726,2]
[373175123,1752889866532,-496.8,0.00019726,2]
[373175124,1752889866541,-879.84,0.00019726,2]
[373175125,1752889866550,-249.69878576,0.00019726,2]
[373175126,1752889866560,-1029.07,0.00019726,2]
[373175127,1752889866569,-2375.0,0.00019726,2]
[373175128,1752889866579,-1000.83,0.00019726,2]
[373175129,1752889866591,-489.29,0.00019726,2]
[373175130,1752889866600,-1040.10685699,0.00019726,2]
[373175131,1752889866612,-117.02314301,0.00019726,2]
[373175132,1752889866622,-1875.69,0.00019726,2]
[373175133,1752889866633,-1975.7,0.00019726,2]
[373175134,1752889866642,-1119.15,0.00019726,2]
[373175135,1752889866651,-1408.08,0.00019726,2]
[373175136,1752889866662,-893.88,0.00019726,2]
[373175137,1752889866672,-2673.6,0.00019726,2]
[373175138,1752889866682,-723.58,0.00019726,2]
[373175139,1752889866691,-480.0,0.00019726,2]
[373175140,1752889866700,-486.31,0.00019726,2]
[373175141,1752889866710,-480.0,0.00019726,2]
[373175142,1752889866719,-480.0,0.00019726,2]
[373175143,1752889866729,-604.53,0.00019726,2]
[373175144,1752889866738,-559.33,0.00019726,2]
[373175145,1752889866747,-1020.2,0.00019726,2]
[373175146,1752889866756,-480.0,0.00019726,2]
[373175147,1752889866766,-599.08,0.00019726,2]
[373175148,1752889866775,-528.93,0.00019726,2]
[373175149,1752889866784,-480.0,0.00019726,2]
[373175150,1752889866794,-987.84,0.00019726,2]
[373175151,1752889866803,-648.9,0.00019726,2]
[373175152,1752889866812,-1953.52,0.00019726,2]
[373175153,1752889866822,-586.21,0.00019726,2]
[373175154,1752889866831,-480.0,0.00019726,2]
[373175155,1752889866841,-1355.46,0.00019726,2]
[373175156,1752889866857,-480.0,0.00019726,2]
[373175157,1752889866866,-803.91,0.00019726,2]
[373175158,1752889866875,-480.0,0.00019726,2]
[373175159,1752889866885,-1146.52,0.00019726,2]
[373175160,1752889866895,-894.8,0.00019726,2]
[373175161,1752889866904,-531.73,0.00019726,2]
[373175162,1752889866913,-480.0,0.00019726,2]
[373175163,1752889866923,-652.38,0.00019726,2]
[373175164,1752889866934,-480.0,0.00019726,2]
[373175165,1752889866943,-480.0,0.00019726,2]
[373175166,1752889866953,-480.0,0.00019726,2]
[373175167,1752889866963,-480.0,0.00019726,2]
[373175168,1752889866977,-1050.36,0.00019726,2]
[373175169,1752889866987,-480.0,0.00019726,2]
[373175170,1752889866997,-920.09,0.00019726,2]
[373175171,1752889867007,-156.587,0.00019726,2]
[373175172,1752889867017,-168.89274835,0.00019728,2]
[373175173,1752889867026,-152.34,0.00019742,2]
[373175174,1752889867036,-1000.0,0.00019752,2]
[373175175,1752889867046,-168.0,0.00019763,2]
[373175176,1752889867063,-150.0,0.00019768,2]
[373175177,1752889867086,-509.46482757,0.00019784,2]
[373175178,1752889867097,-500.0,0.00019784,2]
[373175179,1752889867107,-501.21622754,0.00019784,2]
[373175180,1752889867117,-502.82661127,0.00019784,2]
[373175181,1752889867126,-465.99616446,0.00019784,2]
[373175182,1752889867136,-1000.0,0.000198,3]
[373175183,1752889867278,-156.12688589,0.00019812,2]
[373175184,1752889867288,-500.0,0.00019818,2]
[373175185,1752889867297,-164.13936327,0.00019832,2]
[373175186,1752889867307,-480.0,0.00019835,2]
[373175187,1752889867316,-480.0,0.00019835,2]
[373175188,1752889867325,-491.25,0.00019835,2]
[373175189,1752889867334,-359.98049452,0.00019835,2]
[373175190,1752889867343,-480.0,0.00019835,2]
[373175191,1752889867352,-331.99459976,0.00019835,2]
[373175192,1752889867361,-480.0,0.00019835,2]
[373175193,1752889867371,-480.0,0.00019835,2]
[373175194,1752889867380,-480.0,0.00019835,2]
[373175195,1752889867389,-480.0,0.00019835,2]
[373175196,1752889867399,-480.0,0.00019835,2]
[373175197,1752889867410,-518.63,0.00019835,2]
[373175198,1752889867420,-480.0,0.00019835,2]
[373175199,1752889867433,-480.0,0.00019835,2]
[373175200,1752889867442,-480.0,0.00019835,2]
[373175201,1752889867451,-480.0,0.00019835,2]
[373175202,1752889867460,-480.0,0.00019835,2]
[373175203,1752889867469,-480.0,0.00019835,2]
[373175204,1752889867479,-480.0,0.00019835,2]
[373175205,1752889867488,-480.0,0.00019835,2]
[373175206,1752889867497,-480.0,0.00019835,2]
[373175207,1752889867507,-448.48641006,0.00019835,2]
[373175208,1752889867516,-480.0,0.00019835,2]
[373175209,1752889867526,-3044.14,0.00019835,2]
[373175210,1752889867535,-480.0,0.00019835,2]
[373175211,1752889867545,-480.0,0.00019835,2]
[373175212,1752889867555,-512.92,0.00019835,2]
[373175213,1752889867564,-480.0,0.00019835,2]
[373175214,1752889867574,-480.0,0.00019835,2]
[373175215,1752889867584,-706.21,0.00019835,2]
[373175216,1752889867594,-480.0,0.00019835,2]
[373175217,1752889867604,-480.0,0.00019835,2]
[373175218,1752889867613,-480.0,0.00019835,2]
[373175219,1752889867623,-480.0,0.00019835,2]
[373175220,1752889867634,-480.0,0.00019835,2]
[373175221,1752889867643,-480.0,0.00019835,2]
[373175222,1752889867655,-480.0,0.00019835,2]
[373175223,1752889867666,-480.0,0.00019835,2]
[373175224,1752889867680,-480.0,0.00019835,2]
[373175225,1752889867689,-480.0,0.00019835,2]
[373175226,1752889867699,-480.0,0.00019835,2]
[373175227,1752889867708,-480.0,0.00019835,2]
[373175228,1752889867718,-167.828898,0.00019835,2]
[373175229,1752889867727,-480.0,0.00019835,2]
[373175230,1752889867737,-480.0,0.00019835,2]
[373175231,1752889867748,-480.0,0.00019835,2]
[373175232,1752889867757,-480.0,0.00019835,2]
[373175233,1752889867767,-480.0,0.00019835,2]
[373175234,1752889867776,-480.0,0.00019835,2]
[373175235,1752889867786,-151.0,0.00019835,2]
[373175236,1752889867795,-480.0,0.00019835,2]
[373175237,1752889867806,-480.0,0.00019835,2]
[373175238,1752889867816,-480.0,0.00019835,2]
[373175239,1752889867826,-480.0,0.00019835,2]
[373175240,1752889867838,-480.0,0.00019835,2]
[373175241,1752889867848,-480.0,0.00019835,2]
[373175242,1752889867857,-480.0,0.00019835,2]
[373175243,1752889867867,-480.0,0.00019835,2]
[373175244,1752889867877,-480.0,0.00019835,2]
[373175245,1752889867886,-495.86,0.00019835,2]
[373175246,1752889867895,-480.0,0.00019835,2]
[373175247,1752889867904,-480.0,0.00019835,2]
[373175248,1752889867914,-721.32,0.00019835,2]
[373175249,1752889867923,-480.0,0.00019835,2]
[373175250,1752889867934,-480.0,0.00019835,2]
[373175251,1752889867944,-480.0,0.00019835,2]
[373175252,1752889867953,-575.96,0.00019835,2]
[373175253,1752889867963,-480.0,0.00019835,2]
[373175254,1752889867972,-480.0,0.00019835,2]
[373175255,1752889867981,-480.0,0.00019835,2]
[373175256,1752889867991,-480.0,0.00019835,2]
[373175257,1752889868000,-480.0,0.00019835,2]
[373175258,1752889868011,-480.0,0.00019835,2]
[373175259,1752889868021,-480.0,0.00019835,2]
[373175260,1752889868030,-480.0,0.00019835,2]
[373175261,1752889868041,-915.74,0.00019835,2]
[373175262,1752889868051,-480.0,0.00019835,2]
[373175263,1752889868061,-480.0,0.00019835,2]
[373175264,1752889868071,-480.0,0.00019835,2]
[373175265,1752889868080,-480.0,0.00019835,2]
[373175266,1752889868090,-480.0,0.00019835,2]
[373175267,1752889868100,-480.0,0.00019835,2]
[373175268,1752889868111,-480.0,0.00019835,2]
[373175269,1752889868121,-480.0,0.00019835,2]
[373175270,1752889868130,-496.46,0.00019835,2]
[373175271,1752889868141,-480.0,0.00019835,2]
[373175272,1752889868151,-480.0,0.00019835,2]
[373175273,1752889868160,-480.0,0.00019835,2]
[373175274,1752889868170,-480.0,0.00019835,2]
[373175275,1752889868180,-578.36,0.00019835,2]
[373175276,1752889868190,-480.0,0.00019835,2]
[373175277,1752889868199,-480.0,0.00019835,2]
[373175278,1752889868209,-480.0,0.00019835,2]
[373175279,1752889868218,-266.436013,0.00019835,2]
[373175280,1752889868227,-480.0,0.00019835,2]
[373175281,1752889868237,-480.0,0.00019835,2]
[373175282,1752889868247,-151.0,0.00019835,2]
[373175283,1752889868258,-480.0,0.00019835,2]
[373175284,1752889868270,-480.0,0.00019835,2]
[373175285,1752889868282,-480.0,0.00019835,2]
[373175286,1752889868293,-480.0,0.00019835,2]
[373175287,1752889868304,-1840.49,0.00019835,2]
[373175288,1752889868314,-480.0,0.00019835,2]
[373175289,1752889868324,-480.0,0.00019835,2]
[373175290,1752889868334,-673.82,0.00019835,2]
[373175291,1752889868344,-151.0,0.00019835,2]
[373175292,1752889868355,-604.96151535,0.00019835,2]
[373175293,1752889868365,-480.0,0.00019835,2]
[373175294,1752889868374,-471.76546632,0.00019835,2]
[373175295,1752889868391,-27.22453368,0.00019835,2]
[373175296,1752889868403,-480.0,0.00019835,2]
[373175297,1752889868414,-480.0,0.00019835,2]
[373175298,1752889868423,-480.0,0.00019835,2]
[373175299,1752889868434,-480.0,0.00019835,2]
[373175300,1752889868443,-77.9986665,0.00019835,2]
[373175301,1752889868455,-402.0013335,0.00019835,2]
[373175302,1752889868465,-97.4886665,0.00019835,2]
[373175303,1752889868482,-825.6913335,0.00019835,2]
[373175304,1752889868493,-480.0,0.00019835,2]
[373175305,1752889868504,-480.0,0.00019835,2]
[373175306,1752889868515,-480.0,0.00019835,2]
[373175307,1752889868525,-480.0,0.00019835,2]
[373175308,1752889868534,-480.0,0.00019835,2]
[373175309,1752889868544,-480.0,0.00019835,2]
[373175310,1752889868554,-480.0,0.00019835,2]
[373175311,1752889868564,-480.0,0.00019835,2]
[373175312,1752889868574,-480.0,0.00019835,2]
[373175313,1752889868589,-151.0,0.00019835,2]
[373175314,1752889868600,-480.0,0.00019835,2]
[373175315,1752889868610,-480.0,0.00019835,2]
[373175316,1752889868620,-480.0,0.00019835,2]
[373175317,1752889868630,-497.21,0.00019835,2]
[373175318,1752889868639,-480.0,0.00019835,2]
[373175319,1752889868649,-480.0,0.00019835,2]
[373175320,1752889868659,-480.0,0.00019835,2]
[373175321,1752889868668,-504.28,0.00019835,2]
[373175322,1752889868680,-480.0,0.00019835,2]
[373175323,1752889868689,-2035.93,0.00019835,2]
[373175324,1752889868699,-490.21,0.00019835,2]
[373175325,1752889868709,-501.52,0.00019835,2]
[373175326,1752889868719,-480.0,0.00019835,2]
[373175327,1752889868729,-205.955135,0.00019835,2]
[373175328,1752889868741,-548.29,0.00019835,2]
[373175329,1752889868750,-562.57,0.00019835,2]
[373175330,1752889868759,-480.0,0.00019835,2]
[373175331,1752889868768,-480.0,0.00019835,2]
[373175332,1752889868778,-480.0,0.00019835,2]
[373175333,1752889868788,-480.0,0.00019835,2]
[373175334,1752889868797,-818.89,0.00019835,2]
[373175335,1752889868807,-228.177874,0.00019835,2]
[373175336,1752889868817,-480.0,0.00019835,2]
[373175337,1752889868827,-687.65,0.00019835,2]
[373175338,1752889868836,-480.0,0.00019835,2]
[373175339,1752889868846,-2202.48,0.00019835,2]
[373175340,1752889868855,-152.65180837,0.00019835,2]
[373175341,1752889868893,-480.0,0.00019287,2]
[373175342,1752889868905,-327.34819163,0.00019835,2]
[373175343,1752889868915,-480.0,0.00019835,2]
[373175344,1752889868925,-618.1,0.00019835,2]
[373175345,1752889868937,-480.0,0.00019835,2]
[373175346,1752889868947,-936.33,0.00019835,2]
[373175347,1752889868956,-480.0,0.00019835,2]
[373175348,1752889868966,-228.177874,0.00019835,2]
[373175349,1752889868975,-480.0,0.00019835,2]
[373175350,1752889868985,-480.0,0.00019835,2]
[373175351,1752889868995,-371.14571811,0.00019835,2]
[373175352,1752890022318,-722.629889,0.00020083,8]
[373175353,1752890022560,-19277.370111,0.00020864,7]
[373175397,1752890394654,1187.61892582,0.00022,30]
[373175409,1752891031981,-306.35,0.00014916,2]
[373175410,1752891031992,-198.65,0.00014916,2]
[373175411,1752891032002,-505.0,0.0001672,4]
[373175412,1752891032013,-470.811124,0.00017254,2]
[373175413,1752891032025,-697.18001476,0.00017254,2]
[373175414,1752891032208,-2102.43540105,0.00017254,2]
[373175415,1752891032219,-6002.52659431,0.00017254,2]
[373175416,1752891032231,-2500.0,0.00017254,2]
[373175417,1752891032250,-299.816,0.00017254,2]
[373175423,1752891037820,-300.43725987,0.00017254,2]
[373175424,1752891038329,-704.58979986,0.00017254,2]
[373175428,1752891038363,-9297.20380615,0.00017254,2]
[373175430,1752891038373,-436.31,0.00017275,2]
[373175432,1752891038384,-163.96,0.00017288,2]
[373175434,1752891038393,-1000.0,0.00017301,2]
[373175436,1752891038403,-3185.41,0.00017332,2]
[373175437,1752891038412,-419.89,0.00017344,2]
[373175439,1752891038422,-300.0,0.00017356,2]
[373175441,1752891038434,-7684.1,0.00017357,2]
[373175443,1752891038443,-177.52,0.00017361,2]
[373175445,1752891038452,-557.81,0.00017398,2]
[373175447,1752891038461,-846.74,0.00017408,2]
[373175449,1752891038470,-1852.42,0.00017428,2]
[373175451,1752891038479,-2352.24,0.00017452,2]
[373175453,1752891038489,-220.25,0.00017462,2]
[373175455,1752891038499,-150.0,0.000175,2]
[373175457,1752891038508,-300.0,0.00017508,2]
[373175459,1752891038517,-250.0,0.00017508,2]
[373175462,1752891038527,-5821.73775571,0.00017578,2]
[373175464,1752891038536,-1083.0,0.00017643,2]
[373175466,1752891038546,-924.61,0.00017758,2]
[373175468,1752891038555,-466.3,0.00017758,2]
[373175470,1752891038564,-198.42,0.00017758,2]
[373175472,1752891038574,-924.61,0.00017767,2]
[373175474,1752891038583,-924.61,0.00017776,2]
[373175476,1752891038592,-166.14,0.0001778,2]
[373175478,1752891038601,-924.61,0.00017786,2]
[373175480,1752891038611,-924.61,0.00017795,2]
[373175482,1752891038621,-924.61,0.00017804,2]
[373175484,1752891038630,-924.61,0.00017814,2]
[373175486,1752891038639,-924.61,0.00017823,2]
[373175488,1752891038648,-924.61,0.00017832,2]
[373175490,1752891038658,-924.61,0.00017842,2]
[373175492,1752891038668,-924.61,0.00017851,2]
[373175494,1752891038677,-924.61,0.0001786,2]
[373175496,1752891038687,-924.61,0.0001787,2]
[373175498,1752891038696,-924.61,0.00017879,2]
[373175500,1752891038705,-924.61,0.00017888,2]
[373175502,1752891038714,-924.61,0.00017898,2]
[373175504,1752891038723,-924.61,0.00017907,2]
[373175506,1752891038733,-924.61,0.00017916,2]
[373175508,1752891038742,-924.61,0.00017926,2]
[373175510,1752891038751,-3086.69,0.00017929,2]
[373175512,1752891038760,-924.61,0.00017935,2]
[373175514,1752891038769,-250.0,0.00018014,2]
[373175516,1752891038779,-197.11987848,0.00018025,2]
[373175518,1752891038788,-7047.26,0.00018075,2]
[373175520,1752891038798,-150.0,0.00018217,2]
[373175522,1752891038807,-151.0,0.00018317,2]
[373175524,1752891038816,-11496.75513163,0.00018382,2]
[373175526,1752891038825,-666.0,0.00018401,2]
[373175528,1752891038835,-189.84,0.00018473,2]
[373175530,1752891038846,-505.0,0.00018523,6]
[373175532,1752891038855,-1083.0,0.00018571,2]
[373175534,1752891038868,-164.72,0.00018576,2]
[373175536,1752891038877,-164.72,0.00018576,2]
[373175538,1752891038887,-939.68812081,0.00018618,2]
[373175540,1752891038896,-150.0,0.00018651,2]
[373175542,1752891038905,-221.03,0.00018694,2]
[373175544,1752891038920,-207.4,0.00018706,2]
[373175546,1752891038937,-7142.856,0.00018706,2]
[373175548,1752891038948,-1373.91162686,0.00018761,2]
[373175550,1752891038958,-524.57714529,0.00018769,2]
[373175552,1752891038967,-164.3,0.00018773,2]
[373175554,1752891038976,-2076.12,0.00018778,2]
[373175556,1752891038986,-356.94,0.00018778,2]
[373175557,1752891038996,-168.74,0.00018778,2]
[373175560,1752891039006,-150.0,0.0001878,2]
[373175562,1752891039020,-150.0,0.00018872,2]
[373175564,1752891039030,-237.52852129,0.00018881,2]
[373175565,1752891039039,-420.0,0.0001895,2]
[373175567,1752891039049,-2500.0,0.00018978,2]
[373175569,1752891039060,-916.0,0.00019,2]
[373175571,1752891039071,-150.0,0.00019056,2]
[373175574,1752891039081,-633.461,0.00019067,2]
[373175576,1752891039092,-992.36130409,0.00019077,2]
[373175578,1752891039102,-501.75972235,0.00019077,2]
[373175580,1752891039111,-462.82176551,0.00019077,2]
[373175582,1752891039120,-523.06494964,0.00019077,2]
[373175583,1752891039130,-2579.89989818,0.00019078,2]
[373175585,1752891039139,-165.24427734,0.00019078,2]
[373175587,1752891039149,-2500.0,0.00019078,2]
[373175590,1752891039160,-34358.1765,0.00019078,2]
[373175592,1752891039170,-500.0,0.00019099,2]
[373175594,1752891039180,-303.34832,0.00019099,2]
[373175595,1752891039189,-204.00004908,0.00019099,2]
[373175597,1752891039198,-165.88925014,0.00019099,2]
[373175599,1752891039207,-557.02264197,0.00019099,2]
[373175602,1752891039217,-34120.33036839,0.000191,2]
[373175604,1752891039230,-14844.26691467,0.000191,2]
[373175667,1752891040021,-333.11,0.000191,2]
[373175673,1752891040073,-117802.29271694,0.000191,2]
[373175675,1752891040084,-992.36130399,0.00019135,2]
[373175677,1752891040095,-480.0,0.00019178,2]
[373175679,1752891040104,-500.48580733,0.00019178,2]
[373175680,1752891040114,-467.14811866,0.00019178,2]
[373175682,1752891040125,-480.0,0.00019178,2]
[373175684,1752891040137,-480.0,0.00019178,2]
[373175686,1752891040147,-500.23,0.00019178,2]
[373175688,1752891040157,-480.0,0.00019178,2]
[373175690,1752891040166,-480.0,0.00019178,2]
[373175693,1752891040177,-480.0,0.00019178,2]
[373175694,1752891040187,-480.0,0.00019178,2]
[373175696,1752891040196,-480.0,0.00019178,2]
[373175698,1752891040206,-480.0,0.00019178,2]
[373175700,1752891040215,-480.0,0.00019178,2]
[373175702,1752891040225,-480.0,0.00019178,2]
[373175704,1752891040234,-480.0,0.00019178,2]
[373175706,1752891040243,-480.0,0.00019178,2]
[373175708,1752891040253,-465.37875476,0.00019178,2]
[373175710,1752891040262,-480.0,0.00019178,2]
[373175712,1752891040272,-480.0,0.00019178,2]
[373175714,1752891040281,-480.0,0.00019178,2]
[373175716,1752891040291,-480.0,0.00019178,2]
[373175718,1752891040301,-480.0,0.00019178,2]
[373175720,1752891040311,-480.0,0.00019178,2]
[373175722,1752891040320,-480.0,0.00019178,2]
[373175724,1752891040330,-480.0,0.00019178,2]
[373175726,1752891040339,-648.65,0.00019178,2]
[373175728,1752891040348,-480.0,0.00019178,2]
[373175730,1752891040357,-480.0,0.00019178,2]
[373175732,1752891040367,-480.0,0.00019178,2]
[373175734,1752891040376,-480.0,0.00019178,2]
[373175736,1752891040385,-480.0,0.00019178,2]
[373175738,1752891040395,-480.0,0.00019178,2]
[373175740,1752891040404,-480.0,0.00019178,2]
[373175742,1752891040414,-266.2313756,0.00019178,2]
[373175744,1752891040423,-480.0,0.00019178,2]
[373175746,1752891040433,-480.0,0.00019178,2]